[Event "Early-Titled-Tuesday-Blitz-February-27-2024"]
[Site "Chess.com"]
[Date "2024.02.27"]
[Round "5"]
[White "FairChess_on_YouTube"]
[Black "AlexeiShirov"]
[Result "1-0"]
[WhiteElo "3108"]
[BlackElo "2858"]
[TimeControl "180+1"]
[EndTime "8:52:34 PST"]
[Termination "FairChess_on_YouTube won by resignation"]

1. d4 {[%clk 0:03:00.9]} 1... d5 {[%clk 0:02:59.5]} 2. c4 {[%clk 0:03:00.7]}
2... c6 {[%clk 0:02:59.7]} 3. Nf3 {[%clk 0:02:59.7]} 3... Nf6 {[%clk 0:02:59.8]}
4. Qc2 {[%clk 0:02:58.8]} 4... dxc4 {[%clk 0:02:54.1]} 5. e4 {[%clk 0:02:57]}
5... b5 {[%clk 0:02:45.3]} 6. b3 {[%clk 0:02:56.8]} 6... Bg4 {[%clk 0:02:43.6]}
7. bxc4 {[%clk 0:02:52.4]} 7... Bxf3 {[%clk 0:02:42.3]} 8. gxf3 {[%clk
0:02:53.3]} 8... Qxd4 {[%clk 0:02:41]} 9. Bb2 {[%clk 0:02:53.1]} 9... Qc5 {[%clk
0:02:40]} 10. e5 {[%clk 0:02:32.5]} 10... Nfd7 {[%clk 0:02:38.9]} 11. e6 {[%clk
0:02:32.3]} 11... fxe6 {[%clk 0:02:32]} 12. Nd2 {[%clk 0:02:31.1]} 12... Na6
{[%clk 0:02:23]} 13. Ne4 {[%clk 0:02:21.8]} 13... Qf5 {[%clk 0:02:18.5]} 14.
cxb5 {[%clk 0:02:10.8]} 14... Nb4 {[%clk 0:02:10.7]} 15. Qb3 {[%clk 0:02:04]}
15... c5 {[%clk 0:02:09.5]} 16. Bc4 {[%clk 0:01:50.9]} 16... Nd5 {[%clk
0:01:56.1]} 17. Rg1 {[%clk 0:01:31.8]} 17... Ne5 {[%clk 0:01:46.7]} 18. Bxe5
{[%clk 0:01:11]} 18... Qxe5 {[%clk 0:01:46.2]} 19. Rd1 {[%clk 0:01:08.7]} 19...
Rd8 {[%clk 0:01:37.3]} 20. Rg5 {[%clk 0:01:03.6]} 20... Qxh2 {[%clk 0:01:31.4]}
21. Bxd5 {[%clk 0:01:01.9]} 21... exd5 {[%clk 0:01:22.6]} 22. Rgxd5 {[%clk
0:01:02.5]} 22... Rxd5 {[%clk 0:01:02.5]} 23. Qxd5 {[%clk 0:01:03.4]} 1-0

[Event "Early-Titled-Tuesday-Blitz-February-27-2024"]
[Site "Chess.com"]
[Date "2024.02.27"]
[Round "5"]
[White "joshdaruca"]
[Black "losersgame"]
[Result "1-0"]
[WhiteElo "2769"]
[BlackElo "2517"]
[TimeControl "180+1"]
[EndTime "8:52:38 PST"]
[Termination "joshdaruca won on time"]

1. d4 {[%clk 0:02:55.2]} 1... Nf6 {[%clk 0:02:59.4]} 2. c4 {[%clk 0:02:54.8]}
2... Nc6 {[%clk 0:02:59.1]} 3. Nc3 {[%clk 0:02:52]} 3... e5 {[%clk 0:02:59]} 4.
Nf3 {[%clk 0:02:48.7]} 4... exd4 {[%clk 0:02:54.3]} 5. Nxd4 {[%clk 0:02:49.6]}
5... Bb4 {[%clk 0:02:50.9]} 6. Nc2 {[%clk 0:02:40.7]} 6... Bxc3+ {[%clk
0:02:49.2]} 7. bxc3 {[%clk 0:02:41.6]} 7... d6 {[%clk 0:02:43.6]} 8. g3 {[%clk
0:02:13.5]} 8... O-O {[%clk 0:02:28.4]} 9. Bg2 {[%clk 0:02:13.7]} 9... Rb8
{[%clk 0:02:20.1]} 10. Ba3 {[%clk 0:02:04.5]} 10... Nd7 {[%clk 0:01:46.4]} 11.
Ne3 {[%clk 0:01:20.3]} 11... Na5 {[%clk 0:01:06.5]} 12. Qa4 {[%clk 0:01:12.4]}
12... b6 {[%clk 0:01:03.9]} 13. Bb4 {[%clk 0:01:12.8]} 13... Nc5 {[%clk
0:00:20.2]} 14. Qa3 {[%clk 0:01:12.3]} 14... Bb7 {[%clk 0:00:19.6]} 15. Bxa5
{[%clk 0:01:10.9]} 15... Bxg2 {[%clk 0:00:18.3]} 16. Nxg2 {[%clk 0:01:10.6]}
16... bxa5 {[%clk 0:00:19.1]} 17. Qxa5 {[%clk 0:01:08.8]} 17... Rb2 {[%clk
0:00:14.5]} 18. O-O {[%clk 0:01:08]} 18... Rxe2 {[%clk 0:00:14.6]} 19. Qxa7
{[%clk 0:01:08.6]} 19... Rc2 {[%clk 0:00:05.1]} 20. Rfc1 {[%clk 0:01:07.9]}
20... Rd2 {[%clk 0:00:03.8]} 21. Rd1 {[%clk 0:01:06.4]} 1-0

[Event "Early-Titled-Tuesday-Blitz-February-27-2024"]
[Site "Chess.com"]
[Date "2024.02.27"]
[Round "5"]
[White "dropstoneDP"]
[Black "Makswolf200817"]
[Result "1-0"]
[WhiteElo "3031"]
[BlackElo "2726"]
[TimeControl "180+1"]
[EndTime "8:52:40 PST"]
[Termination "dropstoneDP won by checkmate"]

1. e4 {[%clk 0:03:00.9]} 1... c5 {[%clk 0:02:57.2]} 2. Nf3 {[%clk 0:03:01.1]}
2... d6 {[%clk 0:02:57.8]} 3. d4 {[%clk 0:02:59.6]} 3... cxd4 {[%clk 0:02:58.2]}
4. Nxd4 {[%clk 0:03:00.5]} 4... Nf6 {[%clk 0:02:58.6]} 5. Nc3 {[%clk 0:03:01.1]}
5... a6 {[%clk 0:02:59.2]} 6. f3 {[%clk 0:03:01.7]} 6... e5 {[%clk 0:02:58.3]}
7. Nb3 {[%clk 0:03:01.9]} 7... Be7 {[%clk 0:02:58.8]} 8. Be3 {[%clk 0:03:02.2]}
8... Be6 {[%clk 0:02:58.5]} 9. Qd2 {[%clk 0:03:02.2]} 9... h5 {[%clk 0:02:59]}
10. Nd5 {[%clk 0:03:01.4]} 10... Nxd5 {[%clk 0:02:56.6]} 11. exd5 {[%clk
0:03:02.3]} 11... Bf5 {[%clk 0:02:57.1]} 12. Be2 {[%clk 0:03:02.6]} 12... O-O
{[%clk 0:02:42.4]} 13. O-O {[%clk 0:03:02.6]} 13... a5 {[%clk 0:02:32.8]} 14. a4
{[%clk 0:03:00.9]} 14... Nd7 {[%clk 0:02:27.3]} 15. f4 {[%clk 0:03:00.5]} 15...
exf4 {[%clk 0:02:24.9]} 16. Bxf4 {[%clk 0:02:59.9]} 16... Bg6 {[%clk 0:02:24.3]}
17. Kh1 {[%clk 0:02:58.1]} 17... Re8 {[%clk 0:02:16.7]} 18. Bb5 {[%clk
0:02:57.6]} 18... Qc7 {[%clk 0:02:06.6]} 19. c3 {[%clk 0:02:54.2]} 19... Bf6
{[%clk 0:02:02.3]} 20. Rae1 {[%clk 0:02:52.7]} 20... Rxe1 {[%clk 0:01:56]} 21.
Rxe1 {[%clk 0:02:53.6]} 21... Nb6 {[%clk 0:01:52.5]} 22. Bg5 {[%clk 0:02:47.4]}
22... Nc4 {[%clk 0:01:33.1]} 23. Bxc4 {[%clk 0:02:33.6]} 23... Bxg5 {[%clk
0:01:33.4]} 24. Qxg5 {[%clk 0:02:31.2]} 24... Qxc4 {[%clk 0:01:34.1]} 25. Nd4
{[%clk 0:02:31.8]} 25... Qxa4 {[%clk 0:01:28.3]} 26. h3 {[%clk 0:02:31.5]} 26...
Qc4 {[%clk 0:01:25.4]} 27. Re7 {[%clk 0:02:25.6]} 27... b5 {[%clk 0:01:19.7]}
28. Rd7 {[%clk 0:02:15.5]} 28... b4 {[%clk 0:01:17.6]} 29. Rd8+ {[%clk
0:02:15.6]} 29... Rxd8 {[%clk 0:01:12.9]} 30. Qxd8+ {[%clk 0:02:16.5]} 30... Kh7
{[%clk 0:01:13.7]} 31. Nf3 {[%clk 0:02:16.4]} 31... bxc3 {[%clk 0:00:56.9]} 32.
bxc3 {[%clk 0:02:16.1]} 32... Qxd5 {[%clk 0:00:24.9]} 33. Ng5+ {[%clk
0:02:11.6]} 33... Kh6 {[%clk 0:00:25.4]} 34. h4 {[%clk 0:02:11.6]} 34... Bh7
{[%clk 0:00:23.4]} 35. Qe7 {[%clk 0:01:57]} 35... f6 {[%clk 0:00:18.6]} 36. Nf7+
{[%clk 0:01:49.2]} 36... Kg6 {[%clk 0:00:18.6]} 37. Nxd6 {[%clk 0:01:49.2]}
37... Bg8 {[%clk 0:00:14.7]} 38. c4 {[%clk 0:01:45.8]} 38... Qd1+ {[%clk
0:00:14.2]} 39. Kh2 {[%clk 0:01:45.6]} 39... Qd4 {[%clk 0:00:14.9]} 40. Qe8+
{[%clk 0:01:44.7]} 40... Kh7 {[%clk 0:00:14.6]} 41. Qxh5# {[%clk 0:01:44.2]} 1-0

[Event "Early-Titled-Tuesday-Blitz-February-27-2024"]
[Site "Chess.com"]
[Date "2024.02.27"]
[Round "5"]
[White "TitarovVasiliYouTube"]
[Black "MarijaKuznecova"]
[Result "1-0"]
[WhiteElo "2519"]
[BlackElo "2327"]
[TimeControl "180+1"]
[EndTime "8:52:45 PST"]
[Termination "TitarovVasiliYouTube won by resignation"]

1. e4 {[%clk 0:02:49.8]} 1... c5 {[%clk 0:02:59.1]} 2. Nf3 {[%clk 0:02:48.4]}
2... d6 {[%clk 0:02:59]} 3. Be2 {[%clk 0:02:47.3]} 3... Nf6 {[%clk 0:02:58.7]}
4. Nc3 {[%clk 0:02:45.1]} 4... Nc6 {[%clk 0:02:57.8]} 5. O-O {[%clk 0:02:45.5]}
5... e5 {[%clk 0:02:54.1]} 6. Bc4 {[%clk 0:02:43.7]} 6... h6 {[%clk 0:02:52.2]}
7. d3 {[%clk 0:02:43.2]} 7... g6 {[%clk 0:02:52.3]} 8. a3 {[%clk 0:02:39]} 8...
Bg7 {[%clk 0:02:52.1]} 9. b4 {[%clk 0:02:31.7]} 9... cxb4 {[%clk 0:02:47.3]} 10.
axb4 {[%clk 0:02:32.6]} 10... Nxb4 {[%clk 0:02:33.8]} 11. Ba3 {[%clk 0:02:32.5]}
11... Nc6 {[%clk 0:02:25.7]} 12. Nb5 {[%clk 0:02:30.2]} 12... Bf8 {[%clk
0:02:24.4]} 13. d4 {[%clk 0:02:08.7]} 13... a6 {[%clk 0:02:23.1]} 14. Nc3 {[%clk
0:02:05.4]} 14... exd4 {[%clk 0:02:08.6]} 15. Nxd4 {[%clk 0:02:02.3]} 15... Be7
{[%clk 0:02:07.2]} 16. Nxc6 {[%clk 0:01:28.1]} 16... bxc6 {[%clk 0:02:08.1]} 17.
Qd2 {[%clk 0:01:28.5]} 17... O-O {[%clk 0:01:39.3]} 18. Qxh6 {[%clk 0:01:26.4]}
18... d5 {[%clk 0:01:35.4]} 19. Bxe7 {[%clk 0:01:21.5]} 19... Qxe7 {[%clk
0:01:36.3]} 20. exd5 {[%clk 0:01:15.3]} 20... Qc5 {[%clk 0:01:25.6]} 21. Qh4
{[%clk 0:01:12.1]} 21... cxd5 {[%clk 0:01:19]} 22. Qxf6 {[%clk 0:01:05.6]} 22...
Qxc4 {[%clk 0:01:12.7]} 23. Ra4 {[%clk 0:01:03]} 23... Bf5 {[%clk 0:00:30.1]}
24. Rxc4 {[%clk 0:01:00.9]} 24... dxc4 {[%clk 0:00:31]} 25. Nd5 {[%clk
0:01:01.2]} 1-0

[Event "Early-Titled-Tuesday-Blitz-February-27-2024"]
[Site "Chess.com"]
[Date "2024.02.27"]
[Round "5"]
[White "quvnoq_muxlis"]
[Black "MetiForce"]
[Result "0-1"]
[WhiteElo "2676"]
[BlackElo "2896"]
[TimeControl "180+1"]
[EndTime "8:52:47 PST"]
[Termination "MetiForce won by resignation"]

1. e4 {[%clk 0:03:00.9]} 1... c5 {[%clk 0:02:57.7]} 2. Nf3 {[%clk 0:03:00.6]}
2... Nc6 {[%clk 0:02:56.7]} 3. Bb5 {[%clk 0:03:00.3]} 3... g6 {[%clk 0:02:56.3]}
4. O-O {[%clk 0:02:59.9]} 4... Bg7 {[%clk 0:02:56.3]} 5. Re1 {[%clk 0:03:00.5]}
5... e6 {[%clk 0:02:55]} 6. c3 {[%clk 0:02:56.4]} 6... Nge7 {[%clk 0:02:51.6]}
7. d4 {[%clk 0:02:44.2]} 7... cxd4 {[%clk 0:02:52.5]} 8. cxd4 {[%clk 0:02:44.1]}
8... d5 {[%clk 0:02:49.3]} 9. Bxc6+ {[%clk 0:02:37.2]} 9... bxc6 {[%clk
0:02:49.1]} 10. e5 {[%clk 0:02:37.2]} 10... O-O {[%clk 0:02:48.2]} 11. Nc3
{[%clk 0:02:32.4]} 11... h6 {[%clk 0:02:42.5]} 12. Na4 {[%clk 0:02:29.7]} 12...
g5 {[%clk 0:02:38.3]} 13. h3 {[%clk 0:02:29.6]} 13... Ng6 {[%clk 0:02:36.8]} 14.
Nc5 {[%clk 0:02:29.2]} 14... f6 {[%clk 0:02:20.3]} 15. exf6 {[%clk 0:02:22.3]}
15... Qxf6 {[%clk 0:02:20.8]} 16. Qc2 {[%clk 0:02:10.7]} 16... a5 {[%clk
0:02:07.5]} 17. b3 {[%clk 0:02:09]} 17... Ra7 {[%clk 0:02:04.3]} 18. Nd3 {[%clk
0:01:00.6]} 18... Qf5 {[%clk 0:01:55.5]} 19. Ba3 {[%clk 0:00:32.2]} 19... Ba6
{[%clk 0:01:39.4]} 20. Re3 {[%clk 0:00:13.5]} 20... Rf6 {[%clk 0:01:16]} 21. Nc5
{[%clk 0:00:04.4]} 21... Qxc2 {[%clk 0:01:12]} 0-1

[Event "Early-Titled-Tuesday-Blitz-February-27-2024"]
[Site "Chess.com"]
[Date "2024.02.27"]
[Round "5"]
[White "NovakRatko"]
[Black "dorpato"]
[Result "1-0"]
[WhiteElo "2471"]
[BlackElo "2101"]
[TimeControl "180+1"]
[EndTime "8:52:49 PST"]
[Termination "NovakRatko won on time"]

1. d4 {[%clk 0:02:58.8]} 1... Nf6 {[%clk 0:02:57]} 2. c4 {[%clk 0:02:59.1]} 2...
g6 {[%clk 0:02:49.6]} 3. Nc3 {[%clk 0:02:58.7]} 3... d5 {[%clk 0:02:47]} 4. f3
{[%clk 0:02:58.5]} 4... Bg7 {[%clk 0:02:27.6]} 5. e4 {[%clk 0:02:58.2]} 5... c6
{[%clk 0:02:21.3]} 6. e5 {[%clk 0:02:57.8]} 6... Ng8 {[%clk 0:02:11]} 7. f4
{[%clk 0:02:57.8]} 7... e6 {[%clk 0:02:00.5]} 8. Nf3 {[%clk 0:02:56]} 8... Ne7
{[%clk 0:01:51]} 9. b3 {[%clk 0:02:55.1]} 9... b6 {[%clk 0:01:35.5]} 10. Bd3
{[%clk 0:02:53.9]} 10... Bb7 {[%clk 0:01:24]} 11. Ba3 {[%clk 0:02:46.8]} 11...
Nc8 {[%clk 0:01:19.1]} 12. g4 {[%clk 0:02:38.3]} 12... Nd7 {[%clk 0:01:16.3]}
13. f5 {[%clk 0:02:34.8]} 13... Bf8 {[%clk 0:00:59.1]} 14. Bb2 {[%clk
0:02:13.2]} 14... Qc7 {[%clk 0:00:44.3]} 15. fxe6 {[%clk 0:02:08.9]} 15... fxe6
{[%clk 0:00:42.4]} 16. Ng5 {[%clk 0:01:56.8]} 16... Nxe5 {[%clk 0:00:25.3]} 17.
dxe5 {[%clk 0:01:45.7]} 17... Qxe5+ {[%clk 0:00:23.9]} 18. Qe2 {[%clk 0:01:40]}
18... Qxg5 {[%clk 0:00:16.6]} 19. Qxe6+ {[%clk 0:01:24.5]} 19... Qe7 {[%clk
0:00:15.6]} 20. Qxe7+ {[%clk 0:01:22.6]} 20... Bxe7 {[%clk 0:00:14.6]} 21. Nxd5
{[%clk 0:01:22.2]} 21... Rf8 {[%clk 0:00:12.7]} 22. Nc7+ {[%clk 0:01:20.9]}
22... Kd7 {[%clk 0:00:11.5]} 23. Nxa8 {[%clk 0:01:21.3]} 23... Bxa8 {[%clk
0:00:10.8]} 24. O-O-O {[%clk 0:01:20.5]} 24... Bg5+ {[%clk 0:00:09.1]} 25. Kb1
{[%clk 0:01:18.2]} 25... Kc7 {[%clk 0:00:08.3]} 26. Be5+ {[%clk 0:01:16.8]}
26... Kb7 {[%clk 0:00:07]} 27. h4 {[%clk 0:01:15.8]} 1-0

[Event "Early-Titled-Tuesday-Blitz-February-27-2024"]
[Site "Chess.com"]
[Date "2024.02.27"]
[Round "5"]
[White "Aygehovit1992"]
[Black "ploxoi"]
[Result "1-0"]
[WhiteElo "2676"]
[BlackElo "2461"]
[TimeControl "180+1"]
[EndTime "8:53:03 PST"]
[Termination "Aygehovit1992 won by checkmate"]

1. e4 {[%clk 0:02:37.4]} 1... c5 {[%clk 0:02:58.5]} 2. Nf3 {[%clk 0:02:37.2]}
2... e6 {[%clk 0:02:59]} 3. d4 {[%clk 0:02:37.6]} 3... cxd4 {[%clk 0:02:59.6]}
4. Nxd4 {[%clk 0:02:38.5]} 4... Nc6 {[%clk 0:03:00]} 5. Nc3 {[%clk 0:02:38.9]}
5... Qc7 {[%clk 0:03:00.4]} 6. Be3 {[%clk 0:02:37.4]} 6... a6 {[%clk 0:02:59.4]}
7. a3 {[%clk 0:02:37.1]} 7... Nf6 {[%clk 0:02:58.7]} 8. f4 {[%clk 0:02:28]} 8...
d6 {[%clk 0:02:54.7]} 9. Qf3 {[%clk 0:02:24.3]} 9... b5 {[%clk 0:02:41.4]} 10.
Nxc6 {[%clk 0:01:44.7]} 10... Qxc6 {[%clk 0:02:40.8]} 11. Bd3 {[%clk 0:01:45.5]}
11... Bb7 {[%clk 0:02:40.3]} 12. O-O {[%clk 0:01:40.8]} 12... Be7 {[%clk
0:02:39.7]} 13. Rae1 {[%clk 0:01:38.3]} 13... Rc8 {[%clk 0:02:38.3]} 14. Bd4
{[%clk 0:01:37.2]} 14... O-O {[%clk 0:02:14.6]} 15. Kh1 {[%clk 0:01:33]} 15...
Rfe8 {[%clk 0:02:12.6]} 16. Qh3 {[%clk 0:01:31.9]} 16... Nd7 {[%clk 0:02:03.5]}
17. Nd5 {[%clk 0:01:25.6]} 17... Bd8 {[%clk 0:01:48.7]} 18. Re3 {[%clk
0:01:03.6]} 18... e5 {[%clk 0:01:32.2]} 19. Bc3 {[%clk 0:01:02.8]} 19... Nb6
{[%clk 0:01:27.8]} 20. Rg3 {[%clk 0:01:01.7]} 20... Qd7 {[%clk 0:01:16.2]} 21.
Qh6 {[%clk 0:00:56.7]} 21... f5 {[%clk 0:00:22.8]} 22. Nxb6 {[%clk 0:00:56.3]}
22... Bxb6 {[%clk 0:00:23.7]} 23. exf5 {[%clk 0:00:56.3]} 23... Rxc3 {[%clk
0:00:22]} 24. f6 {[%clk 0:00:50.5]} 24... g6 {[%clk 0:00:19.4]} 25. Bxg6 {[%clk
0:00:47.4]} 25... Rxg3 {[%clk 0:00:19.3]} 26. f7+ {[%clk 0:00:47.4]} 26... Kh8
{[%clk 0:00:16.1]} 27. Qxh7# {[%clk 0:00:45.3]} 1-0

[Event "Early-Titled-Tuesday-Blitz-February-27-2024"]
[Site "Chess.com"]
[Date "2024.02.27"]
[Round "5"]
[White "chucksterf10"]
[Black "Roosters19"]
[Result "1-0"]
[WhiteElo "2553"]
[BlackElo "2305"]
[TimeControl "180+1"]
[EndTime "8:53:05 PST"]
[Termination "chucksterf10 won by resignation"]

1. a3 {[%clk 0:03:00.9]} 1... Nf6 {[%clk 0:02:55.5]} 2. c4 {[%clk 0:03:00.3]}
2... c5 {[%clk 0:02:53.8]} 3. b4 {[%clk 0:02:59.1]} 3... cxb4 {[%clk 0:02:52.9]}
4. axb4 {[%clk 0:02:59.1]} 4... b5 {[%clk 0:02:50.7]} 5. cxb5 {[%clk 0:02:56.6]}
5... Bb7 {[%clk 0:02:48.4]} 6. e3 {[%clk 0:02:54.5]} 6... d6 {[%clk 0:02:46.8]}
7. Nf3 {[%clk 0:02:45.5]} 7... Nbd7 {[%clk 0:02:44.5]} 8. d4 {[%clk 0:02:46.1]}
8... g6 {[%clk 0:02:43.7]} 9. Bc4 {[%clk 0:02:42.1]} 9... Bg7 {[%clk 0:02:43.4]}
10. Qb3 {[%clk 0:02:42.7]} 10... O-O {[%clk 0:02:42.5]} 11. Ng5 {[%clk
0:02:43.3]} 11... Qe8 {[%clk 0:02:35.2]} 12. O-O {[%clk 0:02:42.8]} 12... Nb6
{[%clk 0:02:30.6]} 13. Be2 {[%clk 0:02:38.9]} 13... h6 {[%clk 0:02:29.1]} 14.
Nf3 {[%clk 0:02:37.2]} 14... Bd5 {[%clk 0:02:20.8]} 15. Qb2 {[%clk 0:02:27.8]}
15... e5 {[%clk 0:02:19.6]} 16. Nbd2 {[%clk 0:02:24.3]} 16... Qe6 {[%clk
0:02:08.3]} 17. Rd1 {[%clk 0:02:19.6]} 17... Rfc8 {[%clk 0:02:02.1]} 18. h3
{[%clk 0:02:15.1]} 18... Ne4 {[%clk 0:02:01.2]} 19. Nxe4 {[%clk 0:02:12.3]}
19... Bxe4 {[%clk 0:02:02.1]} 20. dxe5 {[%clk 0:02:11]} 20... Rc2 {[%clk
0:01:45.6]} 21. Qd4 {[%clk 0:02:10]} 21... Bb7 {[%clk 0:01:23]} 22. Bd3 {[%clk
0:02:00.9]} 22... dxe5 {[%clk 0:01:22.2]} 23. Qh4 {[%clk 0:01:53.6]} 23... Rcc8
{[%clk 0:00:50.3]} 24. e4 {[%clk 0:01:51.6]} 24... Nc4 {[%clk 0:00:44.6]} 25.
Qg4 {[%clk 0:01:47.4]} 25... Qxg4 {[%clk 0:00:41.2]} 26. hxg4 {[%clk 0:01:48.3]}
26... Nd6 {[%clk 0:00:41.1]} 27. Bb2 {[%clk 0:01:42.5]} 27... Nxe4 {[%clk
0:00:39.6]} 28. Bxe5 {[%clk 0:01:41]} 28... Nc3 {[%clk 0:00:34.6]} 29. Rdc1
{[%clk 0:01:38.6]} 29... Bxf3 {[%clk 0:00:29.8]} 30. Bxg7 {[%clk 0:01:37.8]}
30... Ne2+ {[%clk 0:00:29.6]} 31. Bxe2 {[%clk 0:01:37.3]} 31... Bxe2 {[%clk
0:00:30.5]} 32. Bd4 {[%clk 0:01:34.9]} 32... Rxc1+ {[%clk 0:00:27.3]} 33. Rxc1
{[%clk 0:01:35.8]} 33... Bxb5 {[%clk 0:00:26.9]} 34. Rc7 {[%clk 0:01:32.5]}
34... a6 {[%clk 0:00:26.8]} 35. Be3 {[%clk 0:01:32.9]} 35... Kg7 {[%clk
0:00:24.2]} 36. Bd4+ {[%clk 0:01:32.8]} 36... Kg8 {[%clk 0:00:24.2]} 37. Kh2
{[%clk 0:01:33.3]} 37... Rd8 {[%clk 0:00:22.5]} 38. Be3 {[%clk 0:01:34]} 38...
Kg7 {[%clk 0:00:21.8]} 39. Kg3 {[%clk 0:01:34]} 39... h5 {[%clk 0:00:19.4]} 40.
g5 {[%clk 0:01:34.1]} 40... Rd5 {[%clk 0:00:17.3]} 41. f4 {[%clk 0:01:33.5]}
41... Rd3 {[%clk 0:00:17.1]} 42. Kf2 {[%clk 0:01:32.8]} 42... Rd5 {[%clk
0:00:16.7]} 43. g3 {[%clk 0:01:32.6]} 43... Rf5 {[%clk 0:00:15.4]} 44. Bd4+
{[%clk 0:01:31.4]} 44... Kh7 {[%clk 0:00:15.3]} 45. Rc8 {[%clk 0:01:31.3]} 45...
f6 {[%clk 0:00:14.5]} 46. Bxf6 {[%clk 0:01:31.3]} 1-0

[Event "Early-Titled-Tuesday-Blitz-February-27-2024"]
[Site "Chess.com"]
[Date "2024.02.27"]
[Round "5"]
[White "JulbeNn"]
[Black "emiliochess"]
[Result "0-1"]
[WhiteElo "2537"]
[BlackElo "2363"]
[TimeControl "180+1"]
[EndTime "8:53:07 PST"]
[Termination "emiliochess won by resignation"]

1. e4 {[%clk 0:03:00.9]} 1... c5 {[%clk 0:02:46.1]} 2. Nc3 {[%clk 0:02:59.6]}
2... g6 {[%clk 0:02:44.4]} 3. f4 {[%clk 0:02:59.7]} 3... Bg7 {[%clk 0:02:43.3]}
4. Nf3 {[%clk 0:02:58.8]} 4... e6 {[%clk 0:02:44]} 5. Bc4 {[%clk 0:02:56.4]}
5... Ne7 {[%clk 0:02:44.1]} 6. d3 {[%clk 0:02:55.6]} 6... d5 {[%clk 0:02:43.4]}
7. Bb3 {[%clk 0:02:55.9]} 7... dxe4 {[%clk 0:02:42.7]} 8. Nxe4 {[%clk
0:02:56.8]} 8... Nbc6 {[%clk 0:02:42.2]} 9. O-O {[%clk 0:02:56.9]} 9... b6
{[%clk 0:02:41.2]} 10. Qe1 {[%clk 0:02:55]} 10... O-O {[%clk 0:02:40.4]} 11. Qh4
{[%clk 0:02:44.8]} 11... Nf5 {[%clk 0:02:37.6]} 12. Qf2 {[%clk 0:02:35.5]} 12...
Ncd4 {[%clk 0:02:35]} 13. Ne5 {[%clk 0:02:27.5]} 13... Nxb3 {[%clk 0:02:29.1]}
14. axb3 {[%clk 0:02:28.4]} 14... Bb7 {[%clk 0:02:28.8]} 15. Be3 {[%clk
0:02:14.1]} 15... Qc7 {[%clk 0:02:20.8]} 16. Ng4 {[%clk 0:01:29.4]} 16... h5
{[%clk 0:02:17.2]} 17. Ngf6+ {[%clk 0:01:27.9]} 17... Kh8 {[%clk 0:02:17.8]} 18.
Bd2 {[%clk 0:00:38.5]} 18... Bxe4 {[%clk 0:02:17.6]} 19. Nxe4 {[%clk 0:00:38.5]}
19... Bd4 {[%clk 0:02:17.4]} 20. Bc3 {[%clk 0:00:38.9]} 20... Rad8 {[%clk
0:02:06.4]} 21. Kh1 {[%clk 0:00:36.6]} 21... Qe7 {[%clk 0:01:58.9]} 22. Ng5
{[%clk 0:00:30.5]} 22... Kg8 {[%clk 0:01:56.2]} 23. Bxd4 {[%clk 0:00:29.4]}
23... Rxd4 {[%clk 0:01:57]} 24. Rfe1 {[%clk 0:00:25.8]} 24... Rfd8 {[%clk
0:01:56]} 25. Qd2 {[%clk 0:00:15.9]} 25... R8d7 {[%clk 0:01:53.3]} 26. Nf3
{[%clk 0:00:16]} 26... R4d5 {[%clk 0:01:50.3]} 27. Ne5 {[%clk 0:00:15.9]} 27...
Rc7 {[%clk 0:01:50.5]} 28. Qf2 {[%clk 0:00:14.2]} 28... Rd4 {[%clk 0:01:46.7]}
29. Nf3 {[%clk 0:00:13.9]} 29... Rxf4 {[%clk 0:01:46.7]} 30. Qd2 {[%clk
0:00:14.2]} 30... Rg4 {[%clk 0:01:37.5]} 31. h3 {[%clk 0:00:13.6]} 31... Rb4
{[%clk 0:01:31]} 32. Ne5 {[%clk 0:00:04.5]} 32... Rd4 {[%clk 0:01:25.1]} 33. Qf2
{[%clk 0:00:02.7]} 33... Qh4 {[%clk 0:01:23.9]} 34. Qg1 {[%clk 0:00:01.9]} 34...
Ng3+ {[%clk 0:01:15.5]} 35. Kh2 {[%clk 0:00:02]} 35... Qf4 {[%clk 0:01:16.4]}
36. Nf3 {[%clk 0:00:01.2]} 36... Ne2+ {[%clk 0:01:16.5]} 37. Kh1 {[%clk
0:00:01.8]} 37... Nxg1 {[%clk 0:01:16.9]} 38. Kxg1 {[%clk 0:00:02.7]} 0-1

[Event "Early-Titled-Tuesday-Blitz-February-27-2024"]
[Site "Chess.com"]
[Date "2024.02.27"]
[Round "5"]
[White "Kirill_Klukin"]
[Black "Skatchkov_V"]
[Result "1-0"]
[WhiteElo "2851"]
[BlackElo "2652"]
[TimeControl "180+1"]
[EndTime "8:53:10 PST"]
[Termination "Kirill_Klukin won on time"]

1. d4 {[%clk 0:03:00.9]} 1... Nf6 {[%clk 0:02:57.7]} 2. Nf3 {[%clk 0:03:01]}
2... d5 {[%clk 0:02:56.9]} 3. c4 {[%clk 0:03:01]} 3... e6 {[%clk 0:02:54.8]} 4.
Nc3 {[%clk 0:03:00.3]} 4... c5 {[%clk 0:02:53.6]} 5. cxd5 {[%clk 0:02:59.9]}
5... cxd4 {[%clk 0:02:52]} 6. Qa4+ {[%clk 0:02:48.6]} 6... Bd7 {[%clk
0:02:48.5]} 7. Qxd4 {[%clk 0:02:48.5]} 7... exd5 {[%clk 0:02:48.7]} 8. Nxd5
{[%clk 0:02:48]} 8... Qa5+ {[%clk 0:02:24.6]} 9. Nc3 {[%clk 0:02:48]} 9... Nc6
{[%clk 0:02:23.5]} 10. Qd1 {[%clk 0:02:41.4]} 10... O-O-O {[%clk 0:02:19.7]} 11.
Bd2 {[%clk 0:02:41.5]} 11... Bg4 {[%clk 0:02:09.7]} 12. e3 {[%clk 0:02:27]}
12... Ne5 {[%clk 0:02:05]} 13. Be2 {[%clk 0:02:22.3]} 13... Nxf3+ {[%clk
0:00:28]} 14. Bxf3 {[%clk 0:02:15.6]} 14... Bxf3 {[%clk 0:00:25.8]} 15. Qxf3
{[%clk 0:02:14.1]} 15... Bd6 {[%clk 0:00:24]} 16. Rd1 {[%clk 0:01:34.1]} 16...
Qe5 {[%clk 0:00:21.8]} 17. g3 {[%clk 0:01:30.2]} 17... h5 {[%clk 0:00:21.8]} 18.
h4 {[%clk 0:01:27.7]} 18... Kb8 {[%clk 0:00:16.5]} 19. Kf1 {[%clk 0:01:24.6]}
19... Rh6 {[%clk 0:00:16.1]} 20. Ne2 {[%clk 0:01:16.3]} 20... Bb4 {[%clk
0:00:11.7]} 21. Nd4 {[%clk 0:01:08.2]} 21... Bxd2 {[%clk 0:00:07.6]} 22. Rxd2
{[%clk 0:01:09.1]} 22... Ne4 {[%clk 0:00:07.1]} 23. Nc6+ {[%clk 0:01:04.8]}
23... bxc6 {[%clk 0:00:04]} 24. Rxd8+ {[%clk 0:01:05.4]} 24... Kc7 {[%clk
0:00:04.1]} 25. Rd4 {[%clk 0:01:06.1]} 25... Re6 {[%clk 0:00:01.1]} 26. Qf4
{[%clk 0:01:02.4]} 1-0